fUSD/lending_fUSD_20260205
["ID","MTS","AMOUNT","RATE_DAILY","PERIOD"]
[404616326,1770331298285,-150.0,0.00044096,30]
[404616327,1770331298344,-150.0,0.00044096,30]
[404616328,1770331298398,-614.64,0.00044096,30]
[404616329,1770331298451,-150.0,0.00044096,30]
[404616330,1770331298503,-469.84,0.00044096,30]
[404616331,1770331298555,-150.0,0.00044096,30]
[404616332,1770331298607,-150.0,0.00044096,30]
[404616333,1770331298663,-172.62,0.00044096,30]
[404616334,1770331298716,-150.0,0.00044096,30]
[404616335,1770331298773,-1234.74,0.00044096,30]
[404616336,1770331298827,-150.0,0.00044096,30]
[404616337,1770331298882,-180.38,0.00044096,30]
[404616338,1770331298938,-150.0,0.00044096,30]
[404616339,1770331298996,-150.0,0.00044096,30]
[404616340,1770331299052,-614.64,0.00044096,30]
[404616341,1770331299102,-474.62,0.00044096,30]
[404616342,1770331299151,-1020.45,0.00044096,30]
[404616343,1770331299201,-150.0,0.00044096,30]
[404616344,1770331299254,-474.62,0.00044096,30]
[404616345,1770331299306,-150.0,0.00044096,30]
[404616346,1770331299360,-469.84,0.00044096,30]
[404616347,1770331299414,-1234.74,0.00044096,30]
[404616348,1770331299465,-150.0,0.00044096,30]
[404616349,1770331299518,-241.02,0.00044096,30]
[404616350,1770331299569,-150.0,0.00044096,30]
[404616351,1770331299622,-172.62,0.00044096,30]
[404616352,1770331299860,-180.38,0.00044096,30]
[404616353,1770331299913,-614.64,0.00044096,30]
[404616354,1770331299963,-150.0,0.00044096,30]
[404616355,1770331300014,-560.26,0.00044096,30]
[404616356,1770331300064,-560.26,0.00044096,30]
[404616357,1770331300112,-150.0,0.00044096,30]
[404616358,1770331300162,-1234.74,0.00044096,30]
[404616359,1770331300211,-150.0,0.00044096,30]
[404616360,1770331300260,-150.0,0.00044096,30]
[404616361,1770331300309,-614.64,0.00044096,30]
[404616362,1770331300358,-150.0,0.00044096,30]
[404616363,1770331300408,-172.62,0.00044096,30]
[404616364,1770331300456,-180.38,0.00044096,30]
[404616365,1770331300507,-150.0,0.00044096,30]
[404616366,1770331300557,-150.0,0.00044096,30]
[404616367,1770331300608,-474.62,0.00044096,30]
[404616368,1770331300659,-469.84,0.00044096,30]
[404616369,1770331300711,-150.0,0.00044096,30]
[404616370,1770331300761,-180.38,0.00044096,30]
[404616371,1770331300809,-1234.74,0.00044096,30]
[404616372,1770331300858,-474.62,0.00044096,30]
[404616373,1770331300904,-172.62,0.00044096,30]
[404616374,1770331300953,-150.0,0.00044096,30]
[404616375,1770331301005,-150.0,0.00044096,30]
[404616376,1770331301056,-614.64,0.00044096,30]
[404616377,1770331301103,-150.0,0.00044096,30]
[404616378,1770331301150,-150.0,0.00044096,30]
[404616379,1770331301196,-560.26,0.00044096,30]
[404616380,1770331301243,-469.84,0.00044096,30]
[404616381,1770331301292,-150.0,0.00044096,30]
[404616382,1770331301337,-150.0,0.00044096,30]
[404616383,1770331301383,-150.0,0.00044096,30]
[404616384,1770331301427,-474.62,0.00044096,30]
[404616385,1770331301475,-469.84,0.00044096,30]
[404616386,1770331301521,-798.93,0.00044096,30]
[404616387,1770331301566,-150.0,0.00044096,30]
[404616388,1770331301611,-180.38,0.00044096,30]
[404616389,1770331301656,-150.0,0.00044096,30]
[404616390,1770331301706,-150.0,0.00044096,30]
[404616391,1770331301756,-560.26,0.00044096,30]
[404616392,1770331301804,-150.0,0.00044096,30]
[404616393,1770331301854,-172.62,0.00044096,30]
[404616394,1770331301904,-614.64,0.00044096,30]
[404616395,1770331301954,-560.26,0.00044096,30]
[404616396,1770331302002,-150.0,0.00044096,30]
[404616397,1770331302051,-180.38,0.00044096,30]
[404616398,1770331302100,-172.62,0.00044096,30]
[404616399,1770331302148,-150.0,0.00044096,30]
[404616400,1770331302197,-150.0,0.00044096,30]
[404616401,1770331302250,-258.66,0.00044096,30]
[404616402,1770331302296,-1234.74,0.00044096,30]
[404616403,1770331302342,-474.62,0.00044096,30]
[404616404,1770331302389,-614.64,0.00044096,30]
[404616405,1770331302434,-469.84,0.00044096,30]
[404616406,1770331302479,-150.0,0.00044096,30]
[404616407,1770331302524,-150.0,0.00044096,30]
[404616408,1770331302570,-150.0,0.00044096,30]
[404616409,1770331302620,-560.26,0.00044096,30]
[404616410,1770331302674,-474.62,0.00044096,30]
[404616411,1770331302722,-150.0,0.00044096,30]
[404616412,1770331302771,-614.64,0.00044096,30]
[404616413,1770331302821,-150.0,0.00044096,30]
[404616414,1770331302872,-1234.74,0.00044096,30]
[404616415,1770331302924,-469.84,0.00044096,30]
[404616416,1770331302976,-150.0,0.00044096,30]
[404616417,1770331303030,-172.62,0.00044096,30]
[404616418,1770331303078,-150.0,0.00044096,30]
[404616419,1770331303126,-150.0,0.00044096,30]
[404616420,1770331303173,-180.38,0.00044096,30]
[404616421,1770331303224,-1234.74,0.00044096,30]
[404616422,1770331303272,-469.84,0.00044096,30]
[404616423,1770331303322,-474.62,0.00044096,30]
[404616424,1770331303369,-614.64,0.00044096,30]
[404616425,1770331303417,-172.62,0.00044096,30]
[404616426,1770331303467,-150.0,0.00044096,30]
[404616427,1770331303520,-150.0,0.00044096,30]
[404616428,1770331303574,-560.26,0.00044096,30]
[404616429,1770331303624,-150.0,0.00044096,30]
[404616430,1770331303676,-180.38,0.00044096,30]
[404616431,1770331303724,-150.0,0.00044096,30]
[404616432,1770331303773,-150.0,0.00044096,30]
[404616433,1770331303823,-180.38,0.00044096,30]
[404616434,1770331303872,-150.0,0.00044096,30]
[404616435,1770331303925,-150.0,0.00044096,30]
[404616436,1770331303973,-614.64,0.00044096,30]
[404616437,1770331304024,-172.62,0.00044096,30]
[404616438,1770331304074,-1234.74,0.00044096,30]
[404616439,1770331304259,-469.84,0.00044096,30]
[404616440,1770331304308,-560.26,0.00044096,30]
[404616441,1770331304354,-474.62,0.00044096,30]
[404616442,1770331304403,-150.0,0.00044096,30]
[404616443,1770331304449,-150.0,0.00044096,30]
[404616444,1770331304495,-180.38,0.00044096,30]
[404616445,1770331304546,-1234.74,0.00044096,30]
[404616446,1770331304594,-474.62,0.00044096,30]
[404616447,1770331304640,-150.0,0.00044096,30]
[404616448,1770331304687,-469.84,0.00044096,30]
[404616449,1770331304737,-560.26,0.00044096,30]
[404616450,1770331304789,-150.0,0.00044096,30]
[404616451,1770331304837,-150.0,0.00044096,30]
[404616452,1770331304887,-150.0,0.00044096,30]
[404616453,1770331304936,-614.64,0.00044096,30]
[404616454,1770331304984,-172.62,0.00044096,30]
[404616455,1770331305035,-560.26,0.00044096,30]
[404616456,1770331305084,-150.0,0.00044096,30]
[404616457,1770331305131,-150.0,0.00044096,30]
[404616458,1770331305179,-150.0,0.00044096,30]
[404616459,1770331305228,-180.38,0.00044096,30]
[404616460,1770331305274,-474.62,0.00044096,30]
[404616461,1770331305320,-469.84,0.00044096,30]
[404616462,1770331305366,-172.62,0.00044096,30]
[404616463,1770331305413,-614.64,0.00044096,30]
[404616464,1770331305459,-150.0,0.00044096,30]
[404616465,1770331305506,-996.29,0.00044096,30]
[404616466,1770331305552,-180.38,0.00044096,30]
[404616467,1770331305599,-469.84,0.00044096,30]
[404616468,1770331305646,-150.0,0.00044096,30]
[404616469,1770331305693,-560.26,0.00044096,30]
[404616470,1770331305741,-150.0,0.00044096,30]
[404616471,1770331305791,-614.64,0.00044096,30]
[404616472,1770331305841,-171.25,0.00044096,30]
[404616473,1770331305888,-150.0,0.00044096,30]
[404616474,1770331305934,-336.49,0.00044096,30]
[404616475,1770331305981,-469.84,0.00044096,30]
[404616476,1770331306028,-614.64,0.00044096,30]
[404616477,1770331306079,-474.62,0.00044096,30]
[404616478,1770331306126,-180.38,0.00044096,30]
[404616479,1770331306174,-150.0,0.00044096,30]
[404616480,1770331306220,-172.62,0.00044096,30]
[404616481,1770331306267,-560.26,0.00044096,30]
[404616482,1770331306314,-150.0,0.00044096,30]
[404616483,1770331306360,-469.84,0.00044096,30]
[404616484,1770331306411,-150.0,0.00044096,30]
[404616485,1770331306457,-614.64,0.00044096,30]
[404616486,1770331306503,-180.38,0.00044096,30]
[404616487,1770331306548,-150.0,0.00044096,30]
[404616488,1770331306594,-560.26,0.00044096,30]
[404616489,1770331306638,-172.62,0.00044096,30]
[404616490,1770331306684,-474.62,0.00044096,30]
[404616491,1770331306728,-474.62,0.00044096,30]
[404616492,1770331306776,-150.0,0.00044096,30]
[404616493,1770331306825,-150.0,0.00044096,30]
[404616494,1770331306874,-469.84,0.00044096,30]
[404616495,1770331306923,-614.64,0.00044096,30]
[404616496,1770331306971,-560.26,0.00044096,30]
[404616497,1770331307020,-180.38,0.00044096,30]
[404616498,1770331307072,-172.62,0.00044096,30]
[404616499,1770331307120,-150.0,0.00044096,30]
[404616500,1770331307166,-474.62,0.00044096,30]
[404616501,1770331307213,-560.26,0.00044096,30]
[404616502,1770331307261,-180.38,0.00044096,30]
[404616503,1770331307306,-359.04,0.00044096,30]
[404616504,1770331307352,-172.62,0.00044096,30]
[404616505,1770331307397,-614.64,0.00044096,30]
[404616506,1770331307445,-150.0,0.00044096,30]
[404616507,1770331307493,-150.0,0.00044096,30]
[404616508,1770331307549,-614.64,0.00044096,30]
[404616509,1770331307599,-180.38,0.00044096,30]
[404616510,1770331307650,-172.62,0.00044096,30]
[404616511,1770331307699,-560.26,0.00044096,30]
[404616512,1770331307750,-469.84,0.00044096,30]
[404616513,1770331307800,-150.0,0.00044096,30]
[404616514,1770331307852,-419.76,0.00044096,30]
[404616515,1770331307901,-150.0,0.00044096,30]
[404616516,1770331307951,-180.38,0.00044096,30]
[404616517,1770331307998,-614.64,0.00044096,30]
[404616518,1770331308047,-150.0,0.00044096,30]
[404616519,1770331308096,-469.84,0.00044096,30]
[404616520,1770331308145,-560.26,0.00044096,30]
[404616521,1770331308192,-172.62,0.00044096,30]
[404616522,1770331308239,-560.26,0.00044096,30]
[404616523,1770331308287,-469.84,0.00044096,30]
[404616524,1770331308333,-150.0,0.00044096,30]
[404616525,1770331308377,-150.0,0.00044096,30]
[404616526,1770331308616,-172.62,0.00044096,30]
[404616527,1770331308666,-614.64,0.00044096,30]
[404616528,1770331308717,-180.38,0.00044096,30]
[404616529,1770331308766,-150.0,0.00044096,30]
[404616530,1770331308812,-469.84,0.00044096,30]
[404616531,1770331308860,-172.62,0.00044096,30]
[404616532,1770331308908,-180.38,0.00044096,30]
[404616533,1770331308955,-560.26,0.00044096,30]
[404616534,1770331309010,-614.64,0.00044096,30]
[404616535,1770331309059,-150.0,0.00044096,30]
[404616536,1770331309108,-150.0,0.00044096,30]
[404616537,1770331309156,-469.84,0.00044096,30]
[404616538,1770331309205,-560.26,0.00044096,30]
[404616539,1770331309257,-150.0,0.00044096,30]
[404616540,1770331309306,-172.62,0.00044096,30]
[404616541,1770331309355,-614.64,0.00044096,30]
[404616542,1770331309409,-180.38,0.00044096,30]
[404616543,1770331309461,-560.26,0.00044096,30]
[404616544,1770331309513,-180.38,0.00044096,30]
[404616545,1770331309566,-150.0,0.00044096,30]
[404616546,1770331309617,-469.84,0.00044096,30]
[404616547,1770331309667,-150.0,0.00044096,30]
[404616548,1770331309720,-614.64,0.00044096,30]
[404616549,1770331309770,-172.62,0.00044096,30]
[404616550,1770331309821,-172.62,0.00044096,30]
[404616551,1770331309874,-614.64,0.00044096,30]
[404616552,1770331309925,-469.84,0.00044096,30]
[404616553,1770331309975,-180.38,0.00044096,30]
[404616554,1770331310030,-560.26,0.00044096,30]
[404616555,1770331310084,-150.0,0.00044096,30]
[404616556,1770331310140,-172.62,0.00044096,30]
[404616557,1770331310208,-180.38,0.00044096,30]
[404616558,1770331310257,-614.64,0.00044096,30]
[404616559,1770331310310,-150.0,0.00044096,30]
[404616562,1770331310362,-560.26,0.00044096,30]
[404616563,1770331310412,-469.84,0.00044096,30]
[404616566,1770331310462,-2550.943038,0.00044096,120]
[404616567,1770331310512,-560.26,0.00044096,30]
[404616570,1770331310562,-150.0,0.00044096,30]
[404616572,1770331310614,-172.62,0.00044096,30]
[404616574,1770331310670,-469.84,0.00044096,30]
[404616576,1770331310721,-614.64,0.00044096,30]
[404616578,1770331310776,-180.38,0.00044096,30]
[404616579,1770331310830,-258.2,0.00044096,30]
[404616581,1770331310886,-469.84,0.00044096,30]
[404616584,1770331310942,-180.38,0.00044096,30]
[404616585,1770331310997,-560.26,0.00044096,30]
[404616588,1770331311049,-614.64,0.00044096,30]
[404616590,1770331311098,-150.0,0.00044096,30]
[404616591,1770331311150,-172.62,0.00044096,30]
[404616593,1770331311203,-172.62,0.00044096,30]
[404616596,1770331311256,-150.0,0.00044096,30]
[404616598,1770331311306,-180.38,0.00044096,30]
[404616600,1770331311363,-614.64,0.00044096,30]
[404616602,1770331311413,-469.84,0.00044096,30]
[404616603,1770331311468,-180.38,0.00044096,30]
[404616604,1770331311520,-150.0,0.00044096,30]
[404616605,1770331311571,-469.84,0.00044096,30]
[404616607,1770331311620,-172.62,0.00044096,30]
[404616609,1770331311671,-614.64,0.00044096,30]
[404616611,1770331311717,-150.0,0.00044096,30]
[404616613,1770331311764,-469.84,0.00044096,30]
[404616615,1770331311813,-172.62,0.00044096,30]
[404616617,1770331311870,-614.64,0.00044096,30]
[404616619,1770331311925,-180.38,0.00044096,30]
[404616621,1770331311980,-150.0,0.00044096,30]
[404616624,1770331312036,-150.0,0.00044096,30]
[404616625,1770331312094,-614.64,0.00044096,30]
[404616628,1770331312151,-180.38,0.00044096,30]
[404616630,1770331312207,-469.84,0.00044096,30]
[404616631,1770331312265,-172.62,0.00044096,30]
[404616634,1770331312320,-150.0,0.00044096,30]
[404616636,1770331312381,-172.62,0.00044096,30]
[404616638,1770331312431,-469.84,0.00044096,30]
[404616640,1770331312480,-614.64,0.00044096,30]
[404616642,1770331312528,-180.38,0.00044096,30]
[404616644,1770331312576,-150.0,0.00044096,30]
[404616645,1770331312622,-180.38,0.00044096,30]
[404616646,1770331312671,-614.64,0.00044096,30]
[404616647,1770331312722,-172.62,0.00044096,30]
[404616648,1770331312773,-469.84,0.00044096,30]
[404616649,1770331312825,-50000.0,0.00044096,44]
[404616650,1770331312875,-614.64,0.00044096,30]
[404616651,1770331312928,-345.22,0.00044096,30]
[404616652,1770331312979,-469.84,0.00044096,30]
[404616653,1770331313032,-180.38,0.00044096,30]
[404616654,1770331313089,-172.62,0.00044096,30]
[404616655,1770331313358,-614.64,0.00044096,30]
[404616656,1770331313409,-469.51,0.00044096,30]
[404616657,1770331313466,-180.38,0.00044096,30]
[404616658,1770331313520,-402.11,0.00044096,30]
[404616659,1770331313573,-614.64,0.00044096,30]
[404616660,1770331313623,-172.62,0.00044096,30]
[404616661,1770331313675,-469.84,0.00044096,30]
[404616662,1770331313724,-180.38,0.00044096,30]
[404616663,1770331313779,-469.84,0.00044096,30]
[404616664,1770331313831,-172.62,0.00044096,30]
[404616665,1770331313884,-614.64,0.00044096,30]
[404616666,1770331313934,-469.84,0.00044096,30]
[404616667,1770331313987,-160.0,0.00044096,30]
[404616668,1770331314040,-172.62,0.00044096,30]
[404616669,1770331314092,-614.64,0.00044096,30]
[404616670,1770331314143,-180.38,0.00044096,30]
[404616671,1770331314193,-469.84,0.00044096,30]
[404616672,1770331314244,-614.64,0.00044096,30]
[404616673,1770331314296,-180.38,0.00044096,30]
[404616674,1770331314345,-172.62,0.00044096,30]
[404616675,1770331314392,-469.84,0.00044096,30]
[404616676,1770331314440,-172.62,0.00044096,30]
[404616677,1770331314488,-180.38,0.00044096,30]
[404616678,1770331314539,-614.64,0.00044096,30]
[404616679,1770331314590,-172.62,0.00044096,30]
[404616680,1770331314638,-180.38,0.00044096,30]
[404616681,1770331314682,-614.64,0.00044096,30]
[404616682,1770331314730,-469.67,0.00044096,30]
[404616683,1770331314781,-469.84,0.00044096,30]
[404616684,1770331314830,-180.38,0.00044096,30]
[404616685,1770331314881,-614.64,0.00044096,30]
[404616686,1770331314930,-172.62,0.00044096,30]
[404616696,1770331735393,150.0,0.00014433,2]
[404616697,1770331735587,150.0,0.00014433,120]
[404616698,1770331749636,9137.85,0.00014452,2]
[404616699,1770331774147,-1600.0,0.000146,5]
[404616700,1770331774174,-250.0,0.0001465,2]
[404616701,1770331774196,-3200.0,0.000147,5]
[404616702,1770331774217,-137.5957,0.0001478,2]
[404616709,1770331832021,-112.4043,0.0001478,2]
[404616710,1770331832033,-3331.8631592,0.000148,5]
[404616711,1770331832046,-1468.1368408,0.000148,5]
[404616712,1770331832057,-956.29286277,0.00014899,2]
[404616713,1770331832070,-243.70713723,0.00014899,2]
[404616714,1770331832081,-704.25484084,0.000149,5]
[404616715,1770331832094,-1013.08682692,0.000149,5]
[404616716,1770331832108,-607.56498033,0.000149,5]
[404616717,1770331832121,-277.13919302,0.000149,5]
[404616718,1770331832133,-408.2574532,0.000149,5]
[404616719,1770331832146,-323.3292545,0.000149,5]
[404616720,1770331832458,-3166.36745119,0.000149,5]
[404616721,1770331832469,-250.0,0.00015,2]
[404616722,1770331832480,-4215.33235881,0.00015198,2]
[404616723,1770331832548,-293.48857706,0.00015198,2]
[404616724,1770331832560,-1691.67677193,0.00015198,2]
[404616733,1770331837118,2000.0,0.00018,30]
[404616735,1770331837636,-19236.6,0.00015198,2]
[404616736,1770331837788,-251.80538329,0.00015198,2]
[404616737,1770331837848,-436.75223375,0.00015198,2]
[404616913,1770331839773,-854.0836,0.00015198,2]
[404617020,1770331840768,-1361.29,0.00015198,2]
[404617026,1770331840816,-32403.08369807,0.00015198,2]
[404617028,1770331840825,-397.95750664,0.00015198,2]
[404617030,1770331840834,-218.55774193,0.00015198,2]
[404617032,1770331840843,-197.44773227,0.00015198,2]
[404617034,1770331840854,-2500.0,0.00015199,2]
[404617035,1770331840863,-2617.3139,0.00015199,2]
[404617038,1770331840872,-10000.0,0.00015199,2]
[404617040,1770331840882,-203.493,0.00015213,2]
[404617042,1770331840892,-195.80073138,0.00015213,2]
[404617044,1770331840902,-32968.4071996,0.00015213,2]
[404617046,1770331840911,-171.68456448,0.00015213,2]
[404617047,1770331840921,-1898.67,0.00015277,2]
[404617048,1770331840930,-505.0,0.00015288,2]
[404617049,1770331840939,-3069264.03400321,0.00015296,2]
[404617050,1770331840952,-5162.82916256,0.00015296,2]
[404617051,1770331840963,-1279.12560622,0.00015296,2]
[404617052,1770331840975,-276.871998,0.00015296,2]
[404617053,1770331840990,-4619.849466,0.00015296,2]
[404617054,1770331841004,-290.70761876,0.00015296,2]
[404617055,1770331841016,-506.37642362,0.00015296,2]
[404617057,1770331841027,-27723.83489271,0.00015296,2]
[404617336,1770331843708,-1000.0,0.00015296,2]
[404617346,1770331843797,-1937.50104425,0.00015296,2]
[404617348,1770331843814,-1584.90943152,0.00015296,2]
[404617351,1770331843825,-410.39994,0.00015296,2]
[404617353,1770331843837,-345.0,0.00015296,2]
[404617450,1770331844758,-4197.18904291,0.00015296,2]
[404617453,1770331844770,-1146.795,0.00015296,2]
[404617571,1770331845944,-1149.0,0.00015296,2]
[404617573,1770331845956,-300.4749281,0.00015296,2]
[404617580,1770331846020,-845.0,0.00015296,2]
[404617582,1770331846031,-640.34,0.00015296,2]
[404617585,1770331846049,-652.882568,0.00015296,2]
[404618099,1770331867591,2000.0,0.00021,120]
[404618100,1770331969740,-9281.79671231,0.000148,2]
[404618101,1770331970068,-10000.01,0.000148,2]
[404618102,1770331970274,-10000.01,0.000148,2]
[404618103,1770331971442,-10000.01,0.000148,2]
[404618104,1770331972058,-10000.01,0.000148,2]
[404618105,1770331972545,-10000.01,0.000148,2]
[404618106,1770331978534,-10000.01,0.000148,2]
[404618107,1770331978733,-10000.01,0.000148,2]
[404618108,1770331978927,-10000.01,0.000148,2]
[404618109,1770331979058,-10000.01,0.000148,2]
[404618110,1770331979212,-10000.01,0.000148,2]
[404618111,1770331979348,-10000.01,0.000148,2]
[404618138,1770332126034,-157.09559265,0.000146,2]
[404618139,1770332126062,-842.90440735,0.00014712,2]
[404618140,1770332250688,900.0,0.00016,30]
[404618150,1770332475274,166.66,0.00013837,2]
[404618151,1770332475477,166.66,0.00014129,2]
[404618152,1770332555835,500.0,0.00016,30]
[404618153,1770332713336,1219.79,0.00014055,2]
[404618154,1770332719462,-2271.37,0.00014383,2]
[404618155,1770332738818,-200.0,0.00014395,2]
[404618156,1770332751173,457.27,0.00013939,2]
[404618157,1770332751194,5000.01,0.00013939,2]
[404618158,1770332751215,4427.22,0.00013939,2]
[404618159,1770332820681,163.05717631,0.00014,2]
[404618160,1770332827167,409.73282369,0.00013715,2]
[404618161,1770332827191,1411.35717631,0.00013715,2]
[404618162,1770332847222,800.0,0.000136,4]
[404618163,1770332849315,1600.0,0.000137,5]
[404618164,1770332851411,1188.65282369,0.000138,5]
[404618165,1770332851437,1211.34717631,0.000138,5]
[404618166,1770332853502,3300.0,0.000139,5]
[404618167,1770332879330,349.2836,0.00014295,2]
[404618171,1770332913884,139.37922369,0.00013636,2]
[404618172,1770332913905,65.18077631,0.00013636,2]
[404618173,1770332926972,171.68456448,0.000143,2]
[404618174,1770332946775,1852.42,0.00013618,2]
[404618175,1770332972167,397.95750664,0.000143,2]
[404618176,1770332978538,1280.9822418,0.000143,2]
[404618178,1770333029999,218.55774193,0.000143,2]
[404618197,1770333031833,-165.69438905,0.00014389,2]
[404618199,1770333031842,-3867.32,0.00014395,2]
[404618202,1770333031851,-250.0,0.00014397,2]
[404618204,1770333031860,-1200.0,0.00014397,2]
[404618207,1770333031869,-300.0,0.00014397,2]
[404618209,1770333031878,-152.03924394,0.00014398,2]
[404618211,1770333031887,-500.0,0.00014398,2]
[404618213,1770333031897,-500.0,0.00014398,2]
[404618215,1770333031906,-500.0,0.00014398,2]
[404618217,1770333031915,-500.0,0.00014398,2]
[404618219,1770333031924,-500.0,0.00014398,2]
[404618222,1770333031933,-500.0,0.00014398,2]
[404618224,1770333031942,-500.0,0.00014398,2]
[404618227,1770333031951,-500.0,0.00014398,2]
[404618229,1770333031959,-500.0,0.00014398,2]
[404618231,1770333031968,-500.0,0.00014398,2]
[404618232,1770333031977,-500.0,0.00014398,2]
[404618233,1770333031987,-500.0,0.00014398,2]
[404618234,1770333031996,-500.0,0.00014398,2]
[404618235,1770333032005,-338.59808157,0.00014398,2]
[404618236,1770333032014,-500.0,0.00014398,2]
[404618237,1770333032023,-500.0,0.00014398,2]
[404618238,1770333032032,-500.0,0.00014398,2]
[404618239,1770333032041,-500.0,0.00014398,2]
[404618240,1770333032050,-500.0,0.00014398,2]
[404618241,1770333032059,-300.0,0.00014398,2]
[404618242,1770333032068,-1092.83838992,0.00014398,2]
[404618243,1770333032077,-118373.9667261,0.00014399,2]
[404618244,1770333032091,-689.36580263,0.00014399,2]
[404618245,1770333032102,-378.23771447,0.00014399,2]
[404618246,1770333032114,-25275.96665035,0.00014399,2]
[404618247,1770333032125,-334.9295531,0.00014399,2]
[404618257,1770333037903,-12992.0,0.00014399,2]
[404618258,1770333037948,-577.9201835,0.00014399,2]
[404618259,1770333037995,-1086.8797393,0.00014399,2]
[404618306,1770333040223,-3338.78006525,0.00014399,2]
[404618307,1770333040235,-3153541.45007758,0.00014399,2]
[404618308,1770333040288,-5021.90947583,0.00014399,2]
[404618309,1770333040461,-265.4030612,0.00014399,2]
[404618310,1770333040471,-1841.33853431,0.00014399,2]
[404618332,1770333046379,-3318.44912896,0.00014399,2]
[404618333,1770333046436,-2800.0,0.00014399,2]
[404618334,1770333046447,-30231.5080239,0.00014399,2]
[404618335,1770333046698,-114976.77631925,0.00014399,2]
[404618338,1770333047392,-2823.29,0.00014399,2]
[404618339,1770333047439,-147.48162681,0.00014399,2]
[404618340,1770333047455,-439.39797647,0.00014399,2]
[404618341,1770333047466,-359.00202343,0.00014399,2]
[404618345,1770333064406,165.7,0.00011082,2]
[404618347,1770333094469,500.0,0.00013854,2]
[404618349,1770333121691,1000.0,0.0001369,2]
[404618350,1770333145238,-241.36262219,0.00014299,2]
[404618351,1770333205091,-355.6325,0.00014295,2]
[404618352,1770333233004,4669.68,0.00011233,2]
[404618353,1770333249791,191.24,0.00013699,2]
[404618354,1770333260235,159.37,0.00013699,2]
[404618355,1770333270696,796.88,0.00013699,2]
[404618356,1770333301150,300.0,0.00014298,2]
[404618357,1770333301183,1200.0,0.00014298,2]
[404618358,1770333303489,171.68456445,0.00014199,2]
[404618359,1770333321412,500.0,0.00014298,2]
[404618360,1770333321485,500.0,0.00014298,2]
[404618361,1770333321536,363.82200906,0.00014298,2]
[404618362,1770333349307,853.9881612,0.00014199,2]
[404618363,1770333361325,300.0,0.00014298,2]
[404618364,1770333373788,4663.02526529,0.00014199,2]
[404618365,1770333373813,8670.87583956,0.00014199,2]
[404618366,1770333381995,265.30500442,0.00014199,2]
[404618367,1770333432159,-500.0,0.00014299,2]
[404618368,1770333435316,1063.82915602,0.00013512,2]
[404618369,1770333435339,9231.23084398,0.00013512,2]
[404618370,1770333439425,153.33737461,0.00014226,2]
[404618371,1770333439542,161.09110894,0.00014226,2]
[404618372,1770333439571,500.0,0.00014226,2]
[404618373,1770333439755,500.0,0.00014281,2]
[404618374,1770333439903,150.0,0.00014226,2]
[404618375,1770333440108,150.0,0.00014281,2]
[404618376,1770333440183,500.0,0.00014226,2]